[Event "Titled Tuesday Blitz February 07 Late 2023"]
[White "Tatarinov, Dmitry"]
[Black "Melkumyan, Hrant"]
[WhiteFideId "24160067"]
[BlackFideId "13302485"]
[WhiteElo "2310"]
[BlackElo "2645"]
[Result "0-1"]
[Round "04"]
[TimeControl "180+2"]
[Date "2023.02.07"]
[WhiteClock "0:01:06"]
[BlackClock "0:00:54"]

1. Nf3 {[%clk 0:03:00]}  c5 {[%clk 0:02:59]} 2. e3 {[%clk 0:03:01]}  Nf6 {[%clk 0:02:58]} 3. d4 {[%clk 0:03:01]}  d5 {[%clk 0:02:55]} 4. c4 {[%clk 0:02:58]}  cxd4 {[%clk 0:02:53]} 5. exd4 {[%clk 0:02:57]}  Nc6 {[%clk 0:02:53]} 6. Nc3 {[%clk 0:02:58]}  g6 {[%clk 0:02:51]} 7. cxd5 {[%clk 0:02:55]}  Nxd5 {[%clk 0:02:52]} 8. Bc4 {[%clk 0:02:55]}  Nxc3 {[%clk 0:02:51]} 9. Qb3 {[%clk 0:02:43]}  Nd5 {[%clk 0:02:51]} 10. Bxd5 {[%clk 0:02:43]}  e6 {[%clk 0:02:52]} 11. Bxc6+ {[%clk 0:02:43]}  bxc6 {[%clk 0:02:53]} 12. O-O {[%clk 0:02:42]}  Be7 {[%clk 0:02:53]} 13. Bh6 {[%clk 0:02:33]}  Qd5 {[%clk 0:02:53]} 14. Qc3 {[%clk 0:02:29]}  f6 {[%clk 0:02:52]} 15. Bf4 {[%clk 0:02:11]}  a5 {[%clk 0:02:46]} 16. Rfe1 {[%clk 0:02:10]}  a4 {[%clk 0:02:44]} 17. Nd2 {[%clk 0:01:55]}  O-O {[%clk 0:02:37]} 18. Ne4 {[%clk 0:01:54]}  Bd7 {[%clk 0:02:25]} 19. Nc5 {[%clk 0:01:40]}  Rfd8 {[%clk 0:02:11]} 20. Nb7 {[%clk 0:01:32]}  Re8 {[%clk 0:02:03]} 21. Nc5 {[%clk 0:01:33]}  Bxc5 {[%clk 0:01:46]} 22. dxc5 {[%clk 0:01:33]}  e5 {[%clk 0:01:46]} 23. Rad1 {[%clk 0:01:31]}  Qf7 {[%clk 0:01:46]} 24. Bc1 {[%clk 0:01:27]}  Be6 {[%clk 0:01:46]} 25. a3 {[%clk 0:01:23]}  Bd5 {[%clk 0:01:45]} 26. f4 {[%clk 0:01:18]}  exf4 {[%clk 0:01:39]} 27. Bxf4 {[%clk 0:01:18]}  Kg7 {[%clk 0:01:39]} 28. h4 {[%clk 0:01:16]}  Ra7 {[%clk 0:01:03]} 29. Rxe8 {[%clk 0:01:14]}  Qxe8 {[%clk 0:01:04]} 30. Bg5 {[%clk 0:01:09]}  Rf7 {[%clk 0:01:02]} 31. Re1 {[%clk 0:01:07]}  Qd7 {[%clk 0:00:54]} 32. Qc4 {[%clk 0:01:06]} 0-1


[Site "https://www.chess.com"]

[Event "Titled Tuesday Blitz February 07 Late 2023"]
[White "Tari, Aryan"]
[Black "Darini, Pouria"]
[WhiteFideId "1510045"]
[BlackFideId "12502200"]
[WhiteElo "2642"]
[BlackElo "2401"]
[Result "0-1"]
[Round "04"]
[TimeControl "180+2"]
[Date "2023.02.07"]
[WhiteClock "0:00:31"]
[BlackClock "0:00:13"]

1. e4 {[%clk 0:03:00]}  c5 {[%clk 0:02:59]} 2. Nc3 {[%clk 0:03:00]}  Nc6 {[%clk 0:02:59]} 3. f4 {[%clk 0:02:59]}  g6 {[%clk 0:02:58]} 4. Nf3 {[%clk 0:02:59]}  Bg7 {[%clk 0:02:58]} 5. Bb5 {[%clk 0:02:59]}  Nd4 {[%clk 0:02:59]} 6. O-O {[%clk 0:02:58]}  Nxb5 {[%clk 0:02:46]} 7. Nxb5 {[%clk 0:02:59]}  d5 {[%clk 0:02:47]} 8. e5 {[%clk 0:02:58]}  Nh6 {[%clk 0:02:22]} 9. d4 {[%clk 0:02:57]}  cxd4 {[%clk 0:02:09]} 10. Nbxd4 {[%clk 0:02:56]}  O-O {[%clk 0:02:09]} 11. h3 {[%clk 0:02:56]}  Nf5 {[%clk 0:02:09]} 12. Nxf5 {[%clk 0:02:53]}  Bxf5 {[%clk 0:02:09]} 13. Nd4 {[%clk 0:02:53]}  Be4 {[%clk 0:02:09]} 14. Be3 {[%clk 0:02:52]}  Rc8 {[%clk 0:02:06]} 15. c3 {[%clk 0:02:53]}  Qa5 {[%clk 0:01:58]} 16. Qd2 {[%clk 0:02:34]}  Qa6 {[%clk 0:01:58]} 17. a3 {[%clk 0:02:16]}  f6 {[%clk 0:01:55]} 18. exf6 {[%clk 0:02:13]}  Rxf6 {[%clk 0:01:52]} 19. Nf3 {[%clk 0:02:09]}  Rcf8 {[%clk 0:01:10]} 20. Ne5 {[%clk 0:02:09]}  Qd6 {[%clk 0:00:48]} 21. Bd4 {[%clk 0:02:01]}  g5 {[%clk 0:00:42]} 22. g3 {[%clk 0:01:40]}  gxf4 {[%clk 0:00:42]} 23. gxf4 {[%clk 0:01:41]}  Bh6 {[%clk 0:00:31]} 24. Ng4 {[%clk 0:01:22]}  Bxf4 {[%clk 0:00:23]} 25. Nxf6+ {[%clk 0:00:49]}  Rxf6 {[%clk 0:00:22]} 26. Rxf4 {[%clk 0:00:46]}  Rxf4 {[%clk 0:00:15]} 27. Qe3 {[%clk 0:00:31]}  Qg6+ {[%clk 0:00:13]} 0-1


[Site "https://www.chess.com"]

[Event "Titled Tuesday Blitz February 07 Late 2023"]
[White "Chigaev, Maksim"]
[Black "Shapiro, Viktor"]
[WhiteFideId "4108116"]
[BlackFideId "4175700"]
[WhiteElo "2628"]
[BlackElo "2192"]
[Result "1-0"]
[Round "04"]
[TimeControl "180+2"]
[Date "2023.02.07"]
[WhiteClock "0:00:27"]
[BlackClock "0:00:05"]

1. e4 {[%clk 0:03:00]}  Nf6 {[%clk 0:03:00]} 2. Nc3 {[%clk 0:02:58]}  d5 {[%clk 0:03:00]} 3. exd5 {[%clk 0:02:59]}  Nxd5 {[%clk 0:03:00]} 4. Bc4 {[%clk 0:03:00]}  Nb6 {[%clk 0:03:01]} 5. Bb3 {[%clk 0:03:00]}  c5 {[%clk 0:03:01]} 6. d3 {[%clk 0:03:00]}  Nc6 {[%clk 0:03:02]} 7. Be3 {[%clk 0:03:00]}  Nd4 {[%clk 0:03:00]} 8. Nge2 {[%clk 0:02:58]}  Bg4 {[%clk 0:02:59]} 9. Qd2 {[%clk 0:02:58]}  e5 {[%clk 0:02:57]} 10. h3 {[%clk 0:02:57]}  Bh5 {[%clk 0:02:47]} 11. O-O {[%clk 0:02:49]}  Be7 {[%clk 0:02:46]} 12. Bxd4 {[%clk 0:02:39]}  cxd4 {[%clk 0:02:40]} 13. Ne4 {[%clk 0:02:40]}  O-O {[%clk 0:02:38]} 14. f4 {[%clk 0:02:39]}  a5 {[%clk 0:02:34]} 15. a3 {[%clk 0:02:37]}  a4 {[%clk 0:02:33]} 16. Ba2 {[%clk 0:02:38]}  Nd5 {[%clk 0:02:27]} 17. N2g3 {[%clk 0:02:06]}  Nxf4 {[%clk 0:02:03]} 18. Rxf4 {[%clk 0:01:56]}  exf4 {[%clk 0:02:04]} 19. Nxh5 {[%clk 0:01:56]}  g5 {[%clk 0:01:59]} 20. h4 {[%clk 0:01:44]}  h6 {[%clk 0:01:58]} 21. Rf1 {[%clk 0:01:43]}  Ra6 {[%clk 0:01:49]} 22. hxg5 {[%clk 0:01:33]}  hxg5 {[%clk 0:01:49]} 23. g4 {[%clk 0:01:33]}  Kh7 {[%clk 0:01:42]} 24. Qg2 {[%clk 0:01:22]}  Rh6 {[%clk 0:01:37]} 25. Nd2 {[%clk 0:01:10]}  b5 {[%clk 0:01:26]} 26. Bd5 {[%clk 0:01:09]}  f5 {[%clk 0:01:17]} 27. Bf3 {[%clk 0:01:07]}  Rg8 {[%clk 0:00:55]} 28. Re1 {[%clk 0:01:00]}  Qd6 {[%clk 0:00:46]} 29. Qe2 {[%clk 0:00:50]}  Bf8 {[%clk 0:00:33]} 30. Qe5 {[%clk 0:00:45]}  Rxh5 {[%clk 0:00:20]} 31. Qxf5+ {[%clk 0:00:40]}  Qg6 {[%clk 0:00:19]} 32. Qxg6+ {[%clk 0:00:38]}  Kxg6 {[%clk 0:00:19]} 33. gxh5+ {[%clk 0:00:38]}  Kf5 {[%clk 0:00:20]} 34. Bd5 {[%clk 0:00:35]}  Rh8 {[%clk 0:00:19]} 35. Be6+ {[%clk 0:00:35]}  Kf6 {[%clk 0:00:19]} 36. Bg4 {[%clk 0:00:36]}  Kg7 {[%clk 0:00:13]} 37. Re6 {[%clk 0:00:36]}  b4 {[%clk 0:00:12]} 38. axb4 {[%clk 0:00:32]}  Bxb4 {[%clk 0:00:12]} 39. Ne4 {[%clk 0:00:33]}  a3 {[%clk 0:00:08]} 40. bxa3 {[%clk 0:00:34]}  Bxa3 {[%clk 0:00:08]} 41. Nxg5 {[%clk 0:00:33]}  Bc1 {[%clk 0:00:08]} 42. Kg2 {[%clk 0:00:29]}  Be3 {[%clk 0:00:06]} 43. Kf3 {[%clk 0:00:28]}  Rb8 {[%clk 0:00:06]} 44. h6+ {[%clk 0:00:29]}  Kh8 {[%clk 0:00:05]} 45. Bf5 {[%clk 0:00:28]}  Rf8 {[%clk 0:00:05]} 46. Be4 {[%clk 0:00:27]} 1-0


[Site "https://www.chess.com"]

[Event "Titled Tuesday Blitz February 07 Late 2023"]
[White "Kozak, Adam"]
[Black "Al-Tarboush, Ward"]
[WhiteFideId "753246"]
[BlackFideId "7601450"]
[WhiteElo "2572"]
[BlackElo "2256"]
[Result "1-0"]
[Round "04"]
[TimeControl "180+2"]
[Date "2023.02.07"]
[WhiteClock "0:00:11"]
[BlackClock "0:00:05"]

1. Nf3 {[%clk 0:02:49]}  Nf6 {[%clk 0:02:58]} 2. b3 {[%clk 0:02:49]}  g6 {[%clk 0:02:58]} 3. Bb2 {[%clk 0:02:50]}  Bg7 {[%clk 0:02:59]} 4. g3 {[%clk 0:02:50]}  O-O {[%clk 0:02:59]} 5. Bg2 {[%clk 0:02:51]}  d6 {[%clk 0:02:59]} 6. d4 {[%clk 0:02:51]}  Bf5 {[%clk 0:02:59]} 7. O-O {[%clk 0:02:51]}  Nbd7 {[%clk 0:02:59]} 8. Re1 {[%clk 0:02:51]}  c6 {[%clk 0:02:56]} 9. c4 {[%clk 0:02:51]}  Ne4 {[%clk 0:02:55]} 10. Nh4 {[%clk 0:02:46]}  Ndf6 {[%clk 0:02:51]} 11. Nxf5 {[%clk 0:02:45]}  gxf5 {[%clk 0:02:52]} 12. Qc1 {[%clk 0:02:43]}  d5 {[%clk 0:02:37]} 13. Qc2 {[%clk 0:02:39]}  e6 {[%clk 0:02:34]} 14. e3 {[%clk 0:02:36]}  a5 {[%clk 0:02:32]} 15. f3 {[%clk 0:02:31]}  Nd6 {[%clk 0:02:29]} 16. Nd2 {[%clk 0:02:31]}  b5 {[%clk 0:02:25]} 17. c5 {[%clk 0:02:31]}  Nc8 {[%clk 0:02:22]} 18. e4 {[%clk 0:02:27]}  fxe4 {[%clk 0:02:17]} 19. fxe4 {[%clk 0:02:27]}  Ne7 {[%clk 0:02:17]} 20. Rad1 {[%clk 0:02:21]}  Qd7 {[%clk 0:02:16]} 21. e5 {[%clk 0:02:18]}  Ne8 {[%clk 0:02:16]} 22. Nf3 {[%clk 0:02:19]}  Ng6 {[%clk 0:02:14]} 23. Bc1 {[%clk 0:02:19]}  a4 {[%clk 0:02:10]} 24. b4 {[%clk 0:02:18]}  a3 {[%clk 0:02:09]} 25. Bh3 {[%clk 0:02:16]}  h6 {[%clk 0:02:01]} 26. Kh1 {[%clk 0:02:13]}  Rd8 {[%clk 0:01:58]} 27. Nh4 {[%clk 0:02:10]}  Nxh4 {[%clk 0:01:52]} 28. gxh4 {[%clk 0:02:11]}  Kh8 {[%clk 0:01:51]} 29. Qg2 {[%clk 0:02:01]}  Qe7 {[%clk 0:01:51]} 30. h5 {[%clk 0:01:58]}  Rg8 {[%clk 0:01:44]} 31. Qf3 {[%clk 0:01:57]}  f5 {[%clk 0:01:37]} 32. exf6 {[%clk 0:01:56]}  Qxf6 {[%clk 0:01:36]} 33. Qe2 {[%clk 0:01:45]}  Nc7 {[%clk 0:01:23]} 34. Rg1 {[%clk 0:01:41]}  Qh4 {[%clk 0:01:00]} 35. Qe3 {[%clk 0:01:11]}  Rdf8 {[%clk 0:00:53]} 36. Rg3 {[%clk 0:00:45]}  Qxh5 {[%clk 0:00:10]} 37. Rdg1 {[%clk 0:00:44]}  Bf6 {[%clk 0:00:08]} 38. Bg4 {[%clk 0:00:38]}  Qh4 {[%clk 0:00:07]} 39. Rh3 {[%clk 0:00:36]}  Rxg4 {[%clk 0:00:07]} 40. Qxh6+ {[%clk 0:00:35]}  Qxh6 {[%clk 0:00:02]} 41. Rxh6+ {[%clk 0:00:36]}  Kg8 {[%clk 0:00:02]} 42. Rxg4+ {[%clk 0:00:37]}  Bg7 {[%clk 0:00:02]} 43. Kg2 {[%clk 0:00:28]}  Ne8 {[%clk 0:00:01]} 44. Rxe6 {[%clk 0:00:28]}  Nf6 {[%clk 0:00:01]} 45. Rf4 {[%clk 0:00:18]}  Ne4 {[%clk 0:00:02]} 46. Rxf8+ {[%clk 0:00:17]}  Kxf8 {[%clk 0:00:03]} 47. Rxc6 {[%clk 0:00:16]}  Bxd4 {[%clk 0:00:03]} 48. Ra6 {[%clk 0:00:15]}  Nc3 {[%clk 0:00:03]} 49. Bxa3 {[%clk 0:00:15]}  Ke7 {[%clk 0:00:02]} 50. Bb2 {[%clk 0:00:14]}  Ne2 {[%clk 0:00:01]} 51. Bxd4 {[%clk 0:00:14]}  Nxd4 {[%clk 0:00:02]} 52. h4 {[%clk 0:00:14]}  Nc2 {[%clk 0:00:02]} 53. a3 {[%clk 0:00:14]}  d4 {[%clk 0:00:02]} 54. Rd6 {[%clk 0:00:12]}  d3 {[%clk 0:00:03]} 55. Kf2 {[%clk 0:00:10]}  Nxa3 {[%clk 0:00:03]} 56. Rxd3 {[%clk 0:00:11]}  Nc4 {[%clk 0:00:03]} 57. Rd4 {[%clk 0:00:09]}  Ne5 {[%clk 0:00:03]} 58. Re4 {[%clk 0:00:09]}  Ke6 {[%clk 0:00:03]} 59. Rxe5+ {[%clk 0:00:10]}  Kxe5 {[%clk 0:00:04]} 60. Ke2 {[%clk 0:00:10]}  Kd5 {[%clk 0:00:04]} 61. Kd1 {[%clk 0:00:10]}  Kc6 {[%clk 0:00:05]} 62. Kc1 {[%clk 0:00:11]} 1-0


[Site "https://www.chess.com"]

[Event "Titled Tuesday Blitz February 07 Late 2023"]
[White "Chan, Luis"]
[Black "Suleymanli, Aydin"]
[WhiteFideId "3216357"]
[BlackFideId "13413937"]
[WhiteElo "2208"]
[BlackElo "2560"]
[Result "0-1"]
[Round "04"]
[TimeControl "180+2"]
[Date "2023.02.07"]
[WhiteClock "0:00:01"]
[BlackClock "0:00:02"]

1. b3 {[%clk 0:03:00]}  e5 {[%clk 0:02:58]} 2. Bb2 {[%clk 0:03:01]}  Nc6 {[%clk 0:02:58]} 3. e3 {[%clk 0:03:02]}  d6 {[%clk 0:02:51]} 4. Bb5 {[%clk 0:03:01]}  a6 {[%clk 0:02:51]} 5. Bxc6+ {[%clk 0:03:01]}  bxc6 {[%clk 0:02:52]} 6. d4 {[%clk 0:03:00]}  e4 {[%clk 0:02:51]} 7. Ne2 {[%clk 0:02:58]}  Nf6 {[%clk 0:02:51]} 8. c4 {[%clk 0:02:51]}  h5 {[%clk 0:02:50]} 9. h3 {[%clk 0:02:50]}  h4 {[%clk 0:02:47]} 10. d5 {[%clk 0:02:25]}  c5 {[%clk 0:02:39]} 11. Nd2 {[%clk 0:02:17]}  Bf5 {[%clk 0:02:38]} 12. Qc2 {[%clk 0:02:08]}  Qe7 {[%clk 0:01:35]} 13. O-O-O {[%clk 0:01:42]}  g6 {[%clk 0:01:29]} 14. g4 {[%clk 0:01:40]}  hxg3 {[%clk 0:01:23]} 15. Nxg3 {[%clk 0:01:41]}  Rh4 {[%clk 0:01:16]} 16. Nxf5 {[%clk 0:01:21]}  gxf5 {[%clk 0:01:15]} 17. Rdg1 {[%clk 0:01:22]}  Nd7 {[%clk 0:01:01]} 18. Nf1 {[%clk 0:01:10]}  Ne5 {[%clk 0:01:00]} 19. Ng3 {[%clk 0:01:09]}  Nd3+ {[%clk 0:00:48]} 20. Kb1 {[%clk 0:01:09]}  Qd7 {[%clk 0:00:38]} 21. Bc3 {[%clk 0:00:55]}  a5 {[%clk 0:00:36]} 22. Rd1 {[%clk 0:00:47]}  Nb4 {[%clk 0:00:29]} 23. Qb2 {[%clk 0:00:39]}  Rh7 {[%clk 0:00:19]} 24. h4 {[%clk 0:00:36]}  a4 {[%clk 0:00:15]} 25. a3 {[%clk 0:00:06]}  Nd3 {[%clk 0:00:12]} 26. Rxd3 {[%clk 0:00:05]}  exd3 {[%clk 0:00:13]} 27. b4 {[%clk 0:00:05]}  cxb4 {[%clk 0:00:13]} 28. Qxb4 {[%clk 0:00:06]}  c5 {[%clk 0:00:08]} 29. Qb2 {[%clk 0:00:05]}  Be7 {[%clk 0:00:08]} 30. Ka2 {[%clk 0:00:03]}  Bd8 {[%clk 0:00:03]} 31. Qd2 {[%clk 0:00:03]}  Qb7 {[%clk 0:00:02]} 32. Rb1 {[%clk 0:00:03]}  Qa6 {[%clk 0:00:02]} 33. Qxd3 {[%clk 0:00:03]}  Rxh4 {[%clk 0:00:03]} 34. Nxf5 {[%clk 0:00:04]}  Rh2 {[%clk 0:00:03]} 35. Ng7+ {[%clk 0:00:03]}  Kf8 {[%clk 0:00:04]} 36. Rb2 {[%clk 0:00:02]}  Ra7 {[%clk 0:00:02]} 37. Nf5 {[%clk 0:00:02]}  Rb7 {[%clk 0:00:02]} 38. Rd2 {[%clk 0:00:01]}  Rb3 {[%clk 0:00:02]} 0-1


[Site "https://www.chess.com"]

[Event "Titled Tuesday Blitz February 07 Late 2023"]
[White "Perez Ponsa, Federico"]
[Black "Hirneise, Jens"]
[WhiteFideId "117927"]
[BlackFideId "24614734"]
[WhiteElo "2532"]
[BlackElo "2277"]
[Result "1-0"]
[Round "04"]
[TimeControl "180+2"]
[Date "2023.02.07"]
[WhiteClock "0:00:26"]
[BlackClock "0:00:41"]

1. e4 {[%clk 0:03:00]}  e5 {[%clk 0:02:56]} 2. Nf3 {[%clk 0:02:57]}  Nf6 {[%clk 0:02:55]} 3. d4 {[%clk 0:02:57]}  Nxe4 {[%clk 0:02:51]} 4. Bd3 {[%clk 0:02:56]}  d5 {[%clk 0:02:50]} 5. Nxe5 {[%clk 0:02:56]}  Nd7 {[%clk 0:02:50]} 6. Nc3 {[%clk 0:02:56]}  Nxe5 {[%clk 0:02:46]} 7. dxe5 {[%clk 0:02:55]}  Nxc3 {[%clk 0:02:46]} 8. bxc3 {[%clk 0:02:55]}  Be7 {[%clk 0:02:45]} 9. O-O {[%clk 0:02:55]}  O-O {[%clk 0:02:42]} 10. f4 {[%clk 0:02:42]}  c5 {[%clk 0:02:40]} 11. Be2 {[%clk 0:02:27]}  Bf5 {[%clk 0:02:38]} 12. Bf3 {[%clk 0:02:26]}  Qa5 {[%clk 0:02:29]} 13. Bd2 {[%clk 0:02:14]}  Be4 {[%clk 0:02:15]} 14. c4 {[%clk 0:02:09]}  Qa6 {[%clk 0:02:11]} 15. cxd5 {[%clk 0:02:07]}  Bxf3 {[%clk 0:02:05]} 16. Qxf3 {[%clk 0:02:07]}  Qc4 {[%clk 0:01:55]} 17. Qb3 {[%clk 0:01:44]}  Qa6 {[%clk 0:01:44]} 18. d6 {[%clk 0:01:43]}  Bd8 {[%clk 0:01:43]} 19. a4 {[%clk 0:01:40]}  Rc8 {[%clk 0:01:39]} 20. Qb5 {[%clk 0:01:39]}  Qc6 {[%clk 0:01:38]} 21. Qxc6 {[%clk 0:01:37]}  Rxc6 {[%clk 0:01:38]} 22. Rfb1 {[%clk 0:01:38]}  b6 {[%clk 0:01:37]} 23. a5 {[%clk 0:01:38]}  f6 {[%clk 0:01:37]} 24. axb6 {[%clk 0:01:37]}  Bxb6 {[%clk 0:01:36]} 25. Bc3 {[%clk 0:01:35]}  fxe5 {[%clk 0:01:35]} 26. fxe5 {[%clk 0:01:35]}  Re8 {[%clk 0:01:34]} 27. g3 {[%clk 0:01:29]}  Kf7 {[%clk 0:01:28]} 28. Kg2 {[%clk 0:01:28]}  Ke6 {[%clk 0:01:28]} 29. Kf3 {[%clk 0:01:28]}  Rf8+ {[%clk 0:01:22]} 30. Ke4 {[%clk 0:01:24]}  Rf2 {[%clk 0:01:21]} 31. Rd1 {[%clk 0:01:00]}  Rxc2 {[%clk 0:01:15]} 32. Rac1 {[%clk 0:00:53]}  Rxh2 {[%clk 0:01:07]} 33. Rd2 {[%clk 0:00:38]}  Rxd2 {[%clk 0:01:00]} 34. Bxd2 {[%clk 0:00:38]}  c4 {[%clk 0:00:57]} 35. Bc3 {[%clk 0:00:37]}  a5 {[%clk 0:00:53]} 36. Rf1 {[%clk 0:00:34]}  Rc8 {[%clk 0:00:50]} 37. Rb1 {[%clk 0:00:33]}  Bd8 {[%clk 0:00:47]} 38. Rb7 {[%clk 0:00:31]}  Ra8 {[%clk 0:00:43]} 39. Rxg7 {[%clk 0:00:28]}  a4 {[%clk 0:00:43]} 40. Rxh7 {[%clk 0:00:29]}  a3 {[%clk 0:00:43]} 41. Rh6+ {[%clk 0:00:27]}  Kf7 {[%clk 0:00:43]} 42. e6+ {[%clk 0:00:26]}  Kg8 {[%clk 0:00:41]} 43. Rh8# {[%clk 0:00:26]} 1-0


[Site "https://www.chess.com"]

[Event "Titled Tuesday Blitz February 07 Late 2023"]
[White "Taboas Rodriguez, Daniel"]
[Black "Demidov, Mikhail"]
[WhiteFideId "2208466"]
[BlackFideId "4197143"]
[WhiteElo "2371"]
[BlackElo "2583"]
[Result "0-1"]
[Round "04"]
[TimeControl "180+2"]
[Date "2023.02.07"]
[WhiteClock "0:00:01"]
[BlackClock "0:00:31"]

1. d4 {[%clk 0:02:59]}  g6 {[%clk 0:02:59]} 2. Nf3 {[%clk 0:02:59]}  Bg7 {[%clk 0:02:59]} 3. c4 {[%clk 0:03:00]}  d6 {[%clk 0:02:59]} 4. Nc3 {[%clk 0:03:00]}  Bg4 {[%clk 0:02:58]} 5. e3 {[%clk 0:03:00]}  Nc6 {[%clk 0:02:57]} 6. Be2 {[%clk 0:03:00]}  Nf6 {[%clk 0:02:57]} 7. O-O {[%clk 0:02:58]}  O-O {[%clk 0:02:57]} 8. h3 {[%clk 0:02:58]}  Bd7 {[%clk 0:02:57]} 9. d5 {[%clk 0:02:55]}  Nb4 {[%clk 0:02:54]} 10. a3 {[%clk 0:02:37]}  Na6 {[%clk 0:02:53]} 11. Nd4 {[%clk 0:02:36]}  e5 {[%clk 0:02:50]} 12. dxe6 {[%clk 0:02:35]}  fxe6 {[%clk 0:02:50]} 13. Bf3 {[%clk 0:02:35]}  Rb8 {[%clk 0:02:49]} 14. Rb1 {[%clk 0:02:28]}  e5 {[%clk 0:02:48]} 15. Ndb5 {[%clk 0:02:26]}  Nc5 {[%clk 0:02:44]} 16. b4 {[%clk 0:02:23]}  Ne6 {[%clk 0:02:38]} 17. Nxa7 {[%clk 0:02:11]}  Ng5 {[%clk 0:02:38]} 18. Nab5 {[%clk 0:02:01]}  Kh8 {[%clk 0:02:24]} 19. Be2 {[%clk 0:01:50]}  Bf5 {[%clk 0:02:11]} 20. Bd3 {[%clk 0:01:29]}  Qd7 {[%clk 0:02:01]} 21. Bxf5 {[%clk 0:01:26]}  gxf5 {[%clk 0:02:01]} 22. f4 {[%clk 0:01:13]}  exf4 {[%clk 0:02:01]} 23. exf4 {[%clk 0:01:14]}  Nge4 {[%clk 0:02:00]} 24. Bb2 {[%clk 0:01:09]}  Rg8 {[%clk 0:01:50]} 25. Nxe4 {[%clk 0:01:05]}  Nxe4 {[%clk 0:01:49]} 26. Qc2 {[%clk 0:00:58]}  h6 {[%clk 0:01:43]} 27. Nc3 {[%clk 0:00:56]}  Bxc3 {[%clk 0:01:38]} 28. Bxc3+ {[%clk 0:00:56]}  Kh7 {[%clk 0:01:38]} 29. Rbe1 {[%clk 0:00:49]}  Qe6 {[%clk 0:01:31]} 30. Qd3 {[%clk 0:00:35]}  Rbe8 {[%clk 0:01:10]} 31. Rf3 {[%clk 0:00:24]}  Qg6 {[%clk 0:00:55]} 32. Qf1 {[%clk 0:00:13]}  Re6 {[%clk 0:00:47]} 33. Bb2 {[%clk 0:00:04]}  Nd2 {[%clk 0:00:44]} 34. Rxe6 {[%clk 0:00:04]}  Qxe6 {[%clk 0:00:39]} 35. Qf2 {[%clk 0:00:04]}  Nxf3+ {[%clk 0:00:34]} 36. Qxf3 {[%clk 0:00:05]}  Qe4 {[%clk 0:00:33]} 37. Kf2 {[%clk 0:00:02]}  Qxf3+ {[%clk 0:00:32]} 38. Kxf3 {[%clk 0:00:02]}  Re8 {[%clk 0:00:32]} 39. g4 {[%clk 0:00:02]}  Kg6 {[%clk 0:00:32]} 40. a4 {[%clk 0:00:01]}  Re4 {[%clk 0:00:31]} 0-1


[Site "https://www.chess.com"]

[Event "Titled Tuesday Blitz February 07 Late 2023"]
[White "Pakleza, Zbigniew"]
[Black "O`Gorman, Tom"]
[WhiteFideId "1119290"]
[BlackFideId "2508249"]
[WhiteElo "2494"]
[BlackElo "2355"]
[Result "0-1"]
[Round "04"]
[TimeControl "180+2"]
[Date "2023.02.07"]
[WhiteClock "0:00:07"]
[BlackClock "0:00:46"]

1. d4 {[%clk 0:03:00]}  Nf6 {[%clk 0:02:59]} 2. Nf3 {[%clk 0:03:01]}  d5 {[%clk 0:02:57]} 3. Bf4 {[%clk 0:03:01]}  e6 {[%clk 0:02:56]} 4. e3 {[%clk 0:03:01]}  c5 {[%clk 0:02:57]} 5. c3 {[%clk 0:03:01]}  Nc6 {[%clk 0:02:57]} 6. Nbd2 {[%clk 0:03:02]}  cxd4 {[%clk 0:02:57]} 7. cxd4 {[%clk 0:03:02]}  Qb6 {[%clk 0:02:56]} 8. Qb3 {[%clk 0:03:01]}  Qxb3 {[%clk 0:02:51]} 9. Nxb3 {[%clk 0:03:02]}  Bb4+ {[%clk 0:02:51]} 10. Nfd2 {[%clk 0:03:01]}  Nh5 {[%clk 0:02:49]} 11. Be5 {[%clk 0:02:49]}  f6 {[%clk 0:02:48]} 12. Bc7 {[%clk 0:02:49]}  Kd7 {[%clk 0:02:47]} 13. Bg3 {[%clk 0:02:49]}  Nxg3 {[%clk 0:02:46]} 14. hxg3 {[%clk 0:02:50]}  h6 {[%clk 0:02:44]} 15. a3 {[%clk 0:02:43]}  Bd6 {[%clk 0:02:44]} 16. Rc1 {[%clk 0:02:35]}  b6 {[%clk 0:02:37]} 17. e4 {[%clk 0:02:17]}  Bb7 {[%clk 0:02:35]} 18. Be2 {[%clk 0:02:14]}  dxe4 {[%clk 0:02:27]} 19. Nxe4 {[%clk 0:02:07]}  Nxd4 {[%clk 0:02:00]} 20. Nxf6+ {[%clk 0:01:42]}  gxf6 {[%clk 0:01:59]} 21. Nxd4 {[%clk 0:01:42]}  Be5 {[%clk 0:01:52]} 22. Bb5+ {[%clk 0:01:23]}  Ke7 {[%clk 0:01:45]} 23. O-O {[%clk 0:01:11]}  Rac8 {[%clk 0:01:38]} 24. Nc6+ {[%clk 0:00:35]}  Bxc6 {[%clk 0:01:37]} 25. Bxc6 {[%clk 0:00:36]}  Bxb2 {[%clk 0:01:34]} 26. Rc2 {[%clk 0:00:36]}  Bxa3 {[%clk 0:01:29]} 27. Ra1 {[%clk 0:00:36]}  Bd6 {[%clk 0:01:24]} 28. Rxa7+ {[%clk 0:00:28]}  Rc7 {[%clk 0:01:24]} 29. Ra6 {[%clk 0:00:23]}  Bc5 {[%clk 0:01:20]} 30. Bb5 {[%clk 0:00:20]}  Rd8 {[%clk 0:01:16]} 31. Kh2 {[%clk 0:00:13]}  Rd5 {[%clk 0:01:09]} 32. Ba4 {[%clk 0:00:13]}  Rh5+ {[%clk 0:00:54]} 33. Kg1 {[%clk 0:00:13]}  Rf5 {[%clk 0:00:54]} 34. Bb3 {[%clk 0:00:08]}  Bxf2+ {[%clk 0:00:47]} 35. Rxf2 {[%clk 0:00:06]}  Rc1+ {[%clk 0:00:47]} 36. Kh2 {[%clk 0:00:07]}  Rh5# {[%clk 0:00:46]} 0-1


[Site "https://www.chess.com"]

[Event "Titled Tuesday Blitz February 07 Late 2023"]
[White "Halkias, Stelios"]
[Black "Gurevich, Dmitry"]
[WhiteFideId "4201809"]
[BlackFideId "2000407"]
[WhiteElo "2511"]
[BlackElo "2393"]
[Result "1-0"]
[Round "04"]
[TimeControl "180+2"]
[Date "2023.02.07"]
[WhiteClock "0:01:27"]
[BlackClock "0:01:13"]

1. d4 {[%clk 0:03:00]}  Nf6 {[%clk 0:02:58]} 2. Nf3 {[%clk 0:03:01]}  e6 {[%clk 0:02:57]} 3. e3 {[%clk 0:03:01]}  c5 {[%clk 0:02:56]} 4. b3 {[%clk 0:03:00]}  b6 {[%clk 0:02:55]} 5. Bd3 {[%clk 0:03:00]}  Bb7 {[%clk 0:02:53]} 6. O-O {[%clk 0:03:00]}  Be7 {[%clk 0:02:52]} 7. Bb2 {[%clk 0:03:00]}  O-O {[%clk 0:02:51]} 8. c4 {[%clk 0:02:56]}  cxd4 {[%clk 0:02:50]} 9. exd4 {[%clk 0:02:56]}  d5 {[%clk 0:02:49]} 10. Qe2 {[%clk 0:02:56]}  Nc6 {[%clk 0:02:46]} 11. Nbd2 {[%clk 0:02:55]}  Rc8 {[%clk 0:02:42]} 12. Rad1 {[%clk 0:02:52]}  Re8 {[%clk 0:02:37]} 13. Ne5 {[%clk 0:02:52]}  dxc4 {[%clk 0:02:27]} 14. Ndxc4 {[%clk 0:02:20]}  Bf8 {[%clk 0:02:19]} 15. Rfe1 {[%clk 0:02:16]}  Nb4 {[%clk 0:02:14]} 16. Bb1 {[%clk 0:02:13]}  Nbd5 {[%clk 0:02:13]} 17. Qf3 {[%clk 0:01:58]}  Ba8 {[%clk 0:02:06]} 18. Qg3 {[%clk 0:01:56]}  b5 {[%clk 0:02:00]} 19. Nd2 {[%clk 0:01:39]}  b4 {[%clk 0:01:48]} 20. Ndf3 {[%clk 0:01:39]}  Nc3 {[%clk 0:01:43]} 21. Ng5 {[%clk 0:01:34]}  Nxd1 {[%clk 0:01:13]} 22. Ngxf7 {[%clk 0:01:27]} 1-0


[Site "https://www.chess.com"]